fUSD/lending_fUSD_20241104
["ID","MTS","AMOUNT","RATE_DAILY","PERIOD"]
[341248317,1730725889970,-605.70447526,0.00036712,2]
[341248318,1730725889979,-500.0,0.00036712,2]
[341248319,1730725889988,-500.0,0.00036712,2]
[341248320,1730725889997,-500.0,0.00036712,2]
[341248321,1730725890006,-500.0,0.00036712,2]
[341248322,1730725890015,-500.0,0.00036712,2]
[341248323,1730725890025,-500.0,0.00036712,2]
[341248324,1730725890034,-1002.08,0.00036712,2]
[341248325,1730725890043,-500.0,0.00036712,2]
[341248326,1730725890052,-500.0,0.00036712,2]
[341248327,1730725890062,-500.0,0.00036712,2]
[341248328,1730725890071,-500.0,0.00036712,2]
[341248329,1730725890080,-500.0,0.00036712,2]
[341248330,1730725890092,-500.0,0.00036712,2]
[341248331,1730725890103,-500.0,0.00036712,2]
[341248332,1730725890112,-500.0,0.00036712,2]
[341248333,1730725890121,-500.0,0.00036712,2]
[341248334,1730725890130,-500.0,0.00036712,2]
[341248335,1730725890139,-500.0,0.00036712,2]
[341248336,1730725890148,-633.81096835,0.00036712,2]
[341248337,1730725890158,-500.0,0.00036712,2]
[341248338,1730725890167,-500.0,0.00036712,2]
[341248339,1730725890176,-500.0,0.00036712,2]
[341248340,1730725890185,-500.0,0.00036712,2]
[341248341,1730725890194,-500.0,0.00036712,2]
[341248342,1730725890203,-1341.72,0.00036712,2]
[341248343,1730725890213,-177.6811893,0.00036712,2]
[341248344,1730725890223,-500.0,0.00036712,2]
[341248345,1730725890233,-500.0,0.00036712,2]
[341248346,1730725890242,-500.0,0.00036712,2]
[341248347,1730725890252,-500.0,0.00036712,2]
[341248348,1730725890261,-500.0,0.00036712,2]
[341248349,1730725890271,-195.26403202,0.00036712,2]
[341248350,1730725890281,-1042.98,0.00036712,2]
[341248351,1730725890290,-209.86245991,0.00036712,2]
[341248352,1730725890299,-500.0,0.00036712,2]
[341248353,1730725890308,-500.0,0.00036712,2]
[341248354,1730725890317,-500.0,0.00036712,2]
[341248355,1730725890326,-528.6312482,0.00036712,2]
[341248356,1730725890335,-574.24959526,0.00036712,2]
[341248357,1730725890345,-500.0,0.00036712,2]
[341248358,1730725890354,-500.0,0.00036712,2]
[341248359,1730725890363,-500.0,0.00036712,2]
[341248360,1730725890372,-1342.69,0.00036712,2]
[341248361,1730725890382,-500.0,0.00036712,2]
[341248362,1730725890391,-7421.53,0.00036712,2]
[341248363,1730725890400,-500.0,0.00036712,2]
[341248364,1730725890410,-3370.41,0.00036712,2]
[341248365,1730725890420,-500.0,0.00036712,2]
[341248366,1730725890431,-500.0,0.00036712,2]
[341248367,1730725890440,-624.26,0.00036712,2]
[341248368,1730725890450,-707.91,0.00036712,2]
[341248369,1730725890461,-10707.45,0.00036712,2]
[341248370,1730725890471,-500.0,0.00036712,2]
[341248371,1730725890481,-500.0,0.00036712,2]
[341248372,1730725890490,-500.0,0.00036712,2]
[341248373,1730725890499,-500.0,0.00036712,2]
[341248374,1730725890508,-500.0,0.00036712,2]
[341248375,1730725890517,-500.0,0.00036712,2]
[341248376,1730725890527,-500.0,0.00036712,2]
[341248377,1730725890539,-500.0,0.00036712,2]
[341248378,1730725890548,-831.55,0.00036712,2]
[341248379,1730725890558,-500.0,0.00036712,2]
[341248380,1730725890567,-323.09318585,0.00036712,2]
[341248381,1730725890579,-476.76533369,0.00036712,2]
[341248382,1730725890588,-500.0,0.00036712,2]
[341248383,1730725890598,-1217.0,0.00036712,2]
[341248384,1730725890607,-2695.19,0.00036712,2]
[341248385,1730725890617,-575.33082451,0.00036712,2]
[341248386,1730725890626,-500.0,0.00036712,2]
[341248387,1730725890636,-500.0,0.00036712,2]
[341248388,1730725890645,-500.0,0.00036712,2]
[341248389,1730725890655,-594.19648272,0.00036712,2]
[341248390,1730725890665,-575.84,0.00036712,2]
[341248391,1730725890675,-3535.86,0.00036712,2]
[341248392,1730725890684,-646.31,0.00036712,2]
[341248393,1730725890693,-540.81,0.00036712,2]
[341248394,1730725890706,-500.0,0.00036712,2]
[341248395,1730725890715,-182.29646685,0.00036712,2]
[341248396,1730725890727,-830.33,0.00036712,2]
[341248397,1730725890737,-500.0,0.00036712,2]
[341248398,1730725890747,-500.0,0.00036712,2]
[341248399,1730725890759,-845.84,0.00036712,2]
[341248400,1730725890769,-2000.0,0.00036712,2]
[341248401,1730725890778,-918.13,0.00036712,2]
[341248402,1730725890788,-500.0,0.00036712,2]
[341248403,1730725890799,-1204.33,0.00036712,2]
[341248404,1730725890809,-500.0,0.00036712,2]
[341248405,1730725890819,-749.48,0.00036712,2]
[341248406,1730725890830,-325.43093324,0.00036712,2]
[341248407,1730725890840,-500.0,0.00036712,2]
[341248408,1730725890850,-500.0,0.00036712,2]
[341248409,1730725890859,-532.181417,0.00036712,2]
[341248410,1730725890869,-1387.35,0.00036712,2]
[341248411,1730725890879,-522.28,0.00036712,2]
[341248412,1730725890888,-1564.21,0.00036712,2]
[341248413,1730725890897,-500.0,0.00036712,2]
[341248414,1730725890907,-806.53,0.00036712,2]
[341248415,1730725890917,-500.0,0.00036712,2]
[341248416,1730725890926,-500.0,0.00036712,2]
[341248417,1730725890936,-5168.13,0.00036712,2]
[341248418,1730725890945,-10163.36,0.00036712,2]
[341248419,1730725890954,-500.0,0.00036712,2]
[341248420,1730725890964,-2866.16,0.00036712,2]
[341248421,1730725890973,-691.73,0.00036712,2]
[341248422,1730725890982,-500.0,0.00036712,2]
[341248423,1730725890991,-500.0,0.00036712,2]
[341248424,1730725891000,-1019.92,0.00036712,2]
[341248425,1730725891009,-500.0,0.00036712,2]
[341248426,1730725891018,-5461.87,0.00036712,2]
[341248427,1730725891027,-500.0,0.00036712,2]
[341248428,1730725891036,-500.0,0.00036712,2]
[341248429,1730725891045,-500.0,0.00036712,2]
[341248430,1730725891054,-10956.67,0.00036712,2]
[341248431,1730725891063,-1965.9,0.00036712,2]
[341248432,1730725891072,-500.0,0.00036712,2]
[341248433,1730725891081,-1761.84,0.00036712,2]
[341248434,1730725891091,-1595.14,0.00036712,2]
[341248435,1730725891101,-500.0,0.00036712,2]
[341248436,1730725891110,-568.68,0.00036712,2]
[341248437,1730725891119,-500.0,0.00036712,2]
[341248438,1730725891128,-500.0,0.00036712,2]
[341248439,1730725891138,-500.0,0.00036712,2]
[341248440,1730725891147,-500.0,0.00036712,2]
[341248441,1730725891157,-500.0,0.00036712,2]
[341248442,1730725891166,-10530.0,0.00036712,2]
[341248443,1730725891175,-500.0,0.00036712,2]
[341248444,1730725891184,-1163.57,0.00036712,2]
[341248445,1730725891193,-1038.33,0.00036712,2]
[341248446,1730725891202,-1268.02,0.00036712,2]
[341248447,1730725891211,-500.0,0.00036712,2]
[341248448,1730725891220,-500.0,0.00036712,2]
[341248449,1730725891230,-529.02,0.00036712,2]
[341248450,1730725891239,-500.0,0.00036712,2]
[341248451,1730725891248,-2034.7,0.00036712,2]
[341248452,1730725891258,-755.3,0.00036712,2]
[341248453,1730725891267,-500.0,0.00036712,2]
[341248454,1730725891276,-1475.39,0.00036712,2]
[341248455,1730725891285,-500.0,0.00036712,2]
[341248456,1730725891294,-500.0,0.00036712,2]
[341248457,1730725891303,-500.0,0.00036712,2]
[341248458,1730725891312,-500.0,0.00036712,2]
[341248459,1730725891321,-500.0,0.00036712,2]
[341248460,1730725891331,-500.0,0.00036712,2]
[341248461,1730725891341,-4571.88,0.00036712,2]
[341248462,1730725891350,-901.25,0.00036712,2]
[341248463,1730725891359,-500.0,0.00036712,2]
[341248464,1730725891368,-500.0,0.00036712,2]
[341248465,1730725891377,-5855.7,0.00036712,2]
[341248466,1730725891386,-1827.95,0.00036712,2]
[341248467,1730725891395,-780.78,0.00036712,2]
[341248468,1730725891404,-500.0,0.00036712,2]
[341248469,1730725891413,-541.5,0.00036712,2]
[341248470,1730725891422,-500.0,0.00036712,2]
[341248471,1730725891431,-509.99791136,0.00036712,2]
[341248472,1730725891440,-500.0,0.00036712,2]
[341248473,1730725891450,-500.0,0.00036712,2]
[341248474,1730725891460,-500.0,0.00036712,2]
[341248475,1730725891469,-500.0,0.00036712,2]
[341248476,1730725891479,-500.0,0.00036712,2]
[341248477,1730725891488,-532.83259189,0.00036712,2]
[341248478,1730725891498,-500.0,0.00036712,2]
[341248479,1730725891507,-1576.72,0.00036712,2]
[341248480,1730725891517,-500.0,0.00036712,2]
[341248481,1730725891526,-445.72324221,0.00036712,2]
[341248482,1730725891535,-500.0,0.00036712,2]
[341248483,1730725891544,-500.0,0.00036712,2]
[341248484,1730725891553,-500.0,0.00036712,2]
[341248485,1730725891563,-976.95,0.00036712,2]
[341248486,1730725891571,-500.0,0.00036712,2]
[341248487,1730725891580,-3971.77,0.00036712,2]
[341248488,1730725891591,-500.0,0.00036712,2]
[341248489,1730725891600,-500.0,0.00036712,2]
[341248490,1730725891610,-500.0,0.00036712,2]
[341248491,1730725891619,-500.0,0.00036712,2]
[341248492,1730725891628,-500.0,0.00036712,2]
[341248493,1730725891637,-532.59849698,0.00036712,2]
[341248494,1730725891647,-500.0,0.00036712,2]
[341248495,1730725891656,-2284.83,0.00036799,2]
[341248496,1730725891666,-662.72,0.00036799,2]
[341248497,1730725891675,-150.0,0.00036799,7]
[341248498,1730725891684,-249381.96909352,0.000368,2]
[341248499,1730725891693,-2619.287557,0.000368,29]
[341248500,1730725891703,-218.0,0.00036844,2]
[341248501,1730725891712,-504.871948,0.000369,29]
[341248502,1730725891721,-1300.0,0.000369,13]
[341248503,1730725891730,-160.988321,0.0003696,60]
[341248504,1730725891740,-2284.83,0.00036985,2]
[341248505,1730725891890,-2284.83,0.00036985,2]
[341248506,1730725891900,-662.72,0.00036985,2]
[341248507,1730725891909,-500.0,0.00036986,2]
[341248508,1730725891918,-500.0,0.00036986,2]
[341248509,1730725891928,-319.41252182,0.00036986,2]
[341248510,1730725891938,-167.07967778,0.00036986,2]
[341248511,1730725891947,-331.85849141,0.00036986,2]
[341248512,1730725891956,-470.40589524,0.00036986,2]
[341248513,1730725891966,-500.0,0.00036986,2]
[341248514,1730725891975,-580.29,0.00036986,2]
[341248515,1730725891984,-500.0,0.00036986,2]
[341248516,1730725891993,-500.0,0.00036986,2]
[341248517,1730725892003,-500.0,0.00036986,2]
[341248518,1730725892012,-500.0,0.00036986,2]
[341248519,1730725892021,-500.0,0.00036986,2]
[341248520,1730725892031,-500.0,0.00036986,2]
[341248521,1730725892040,-500.0,0.00036986,2]
[341248522,1730725892049,-500.0,0.00036986,2]
[341248523,1730725892058,-500.0,0.00036986,2]
[341248524,1730725892067,-500.0,0.00036986,2]
[341248525,1730725892076,-500.0,0.00036986,2]
[341248526,1730725892085,-1598.15,0.00036986,2]
[341248527,1730725892096,-500.0,0.00036986,2]
[341248528,1730725892105,-374.9578239,0.00036986,2]
[341248529,1730725892114,-500.0,0.00036986,2]
[341248530,1730725892123,-956.54,0.00036986,7]
[341248531,1730725892132,-570.89,0.00036986,2]
[341248532,1730725892141,-1552.92,0.00036986,2]
[341248533,1730725892151,-500.0,0.00036986,2]
[341248534,1730725892160,-500.0,0.00036986,2]
[341248535,1730725892170,-559.44384338,0.00036986,2]
[341248536,1730725892179,-767.02,0.00036986,2]
[341248537,1730725892188,-500.0,0.00036986,2]
[341248538,1730725892197,-500.0,0.00036986,2]
[341248539,1730725892206,-508.91020983,0.00036986,2]
[341248540,1730725892215,-500.0,0.00036986,2]
[341248541,1730725892224,-500.0,0.00036986,2]
[341248542,1730725892233,-396.36009437,0.00036986,2]
[341248543,1730725892243,-500.0,0.00036986,2]
[341248544,1730725892253,-500.0,0.00036986,2]
[341248545,1730725892262,-500.0,0.00036986,2]
[341248546,1730725892272,-493.08059036,0.00036986,2]
[341248547,1730725892281,-500.0,0.00036986,2]
[341248548,1730725892290,-521.83164561,0.00036986,2]
[341248549,1730725892299,-530.64,0.00036986,2]
[341248550,1730725892308,-500.0,0.00036986,2]
[341248551,1730725892318,-500.0,0.00036986,2]
[341248552,1730725892329,-500.0,0.00036986,2]
[341248553,1730725892340,-500.0,0.00036986,2]
[341248554,1730725892350,-375.09920753,0.00036986,2]
[341248555,1730725892360,-500.0,0.00036986,2]
[341248556,1730725892369,-500.0,0.00036986,2]
[341248557,1730725892378,-500.0,0.00036986,2]
[341248558,1730725892388,-500.0,0.00036986,2]
[341248559,1730725892397,-1163.84,0.00036986,2]
[341248560,1730725892406,-458.98532418,0.00036986,2]
[341248561,1730725892416,-500.0,0.00036986,2]
[341248562,1730725892425,-500.0,0.00036986,2]
[341248563,1730725892434,-500.0,0.00036986,2]
[341248564,1730725892444,-500.0,0.00036986,2]
[341248565,1730725892453,-319.58903513,0.00036986,2]
[341248566,1730725892464,-500.0,0.00036986,2]
[341248567,1730725892473,-500.0,0.00036986,2]
[341248568,1730725892483,-500.0,0.00036986,2]
[341248569,1730725892493,-506.56577502,0.00036986,2]
[341248570,1730725892503,-500.0,0.00036986,2]
[341248571,1730725892513,-614.39,0.00036986,2]
[341248572,1730725892522,-641.85,0.00036986,2]
[341248573,1730725892532,-500.0,0.00036986,2]
[341248574,1730725892541,-575.93129061,0.00036986,2]
[341248575,1730725892551,-500.0,0.00036986,2]
[341248576,1730725892560,-500.0,0.00036986,2]
[341248577,1730725892570,-750.25,0.00036986,2]
[341248578,1730725892580,-419.09123866,0.00036986,2]
[341248579,1730725892589,-500.0,0.00036986,2]
[341248580,1730725892598,-1037.16,0.00036986,2]
[341248581,1730725892608,-500.0,0.00036986,2]
[341248582,1730725892618,-243.01656988,0.00036986,2]
[341248583,1730725892628,-538.4,0.00036986,2]
[341248584,1730725892637,-500.0,0.00036986,2]
[341248585,1730725892647,-500.0,0.00036986,2]
[341248586,1730725892657,-500.0,0.00036986,2]
[341248587,1730725892666,-927.41,0.00036986,2]
[341248588,1730725892676,-485.60658724,0.00036986,2]
[341248589,1730725892685,-500.0,0.00036986,2]
[341248590,1730725892694,-607.03,0.00036986,2]
[341248591,1730725892704,-500.0,0.00036986,2]
[341248592,1730725892713,-500.0,0.00036986,2]
[341248593,1730725892722,-500.0,0.00036986,2]
[341248594,1730725892732,-500.0,0.00036986,2]
[341248595,1730725892742,-500.0,0.00036986,2]
[341248596,1730725892752,-527.13,0.00036986,2]
[341248597,1730725892766,-500.0,0.00036986,2]
[341248598,1730725892776,-500.0,0.00036986,2]
[341248599,1730725892786,-500.0,0.00036986,2]
[341248600,1730725892796,-500.0,0.00036986,2]
[341248601,1730725892806,-500.0,0.00036986,2]
[341248602,1730725892816,-340.46152905,0.00036986,2]
[341248603,1730725892826,-625.04240733,0.00036986,2]
[341248604,1730725892837,-500.0,0.00036986,2]
[341248605,1730725892847,-250.0,0.00036986,2]
[341248606,1730725892857,-500.0,0.00036986,2]
[341248607,1730725892866,-500.0,0.00036986,2]
[341248608,1730725892875,-617.98173505,0.00036986,2]
[341248609,1730725892885,-500.0,0.00036986,2]
[341248610,1730725892894,-1674.02,0.00036986,120]
[341248611,1730725892904,-500.0,0.00036986,2]
[341248612,1730725892913,-604.24700151,0.00036986,2]
[341248613,1730725892924,-500.0,0.00036986,2]
[341248614,1730725892933,-500.0,0.00036986,2]
[341248615,1730725892943,-500.0,0.00036986,2]
[341248616,1730725892953,-500.0,0.00036986,2]
[341248617,1730725892962,-500.0,0.00036986,2]
[341248618,1730725892972,-3101.46,0.00036986,2]
[341248619,1730725892982,-500.0,0.00036986,2]
[341248620,1730725892992,-809.09,0.00036986,2]
[341248621,1730725893001,-500.0,0.00036986,2]
[341248622,1730725893010,-500.0,0.00036986,2]
[341248623,1730725893020,-500.0,0.00036986,2]
[341248624,1730725893030,-537.96584301,0.00036986,2]
[341248625,1730725893040,-202.3487027,0.00036986,2]
[341248626,1730725893050,-500.0,0.00036986,2]
[341248627,1730725893059,-500.0,0.00036986,2]
[341248628,1730725893069,-533.04173414,0.00036986,2]
[341248629,1730725893079,-500.0,0.00036986,2]
[341248630,1730725893091,-500.0,0.00036986,2]
[341248631,1730725893100,-500.0,0.00036986,2]
[341248632,1730725893110,-500.0,0.00036986,2]
[341248633,1730725893121,-620.71,0.00036986,2]
[341248634,1730725893130,-500.0,0.00036986,2]
[341248635,1730725893139,-500.0,0.00036986,2]
[341248636,1730725893149,-1809.12,0.00036986,2]
[341248637,1730725893159,-500.0,0.00036986,2]
[341248638,1730725893169,-504.26187414,0.00036986,2]
[341248639,1730725893179,-500.0,0.00036986,2]
[341248640,1730725893189,-500.0,0.00036986,2]
[341248641,1730725893199,-500.0,0.00036986,2]
[341248642,1730725893209,-500.0,0.00036986,2]
[341248643,1730725893219,-500.0,0.00036986,2]
[341248644,1730725893229,-500.07937429,0.00036986,2]
[341248645,1730725893239,-500.0,0.00036986,2]
[341248646,1730725893248,-500.0,0.00036986,2]
[341248647,1730725893257,-500.0,0.00036986,2]
[341248648,1730725893267,-517.00190559,0.00036986,2]
[341248649,1730725893277,-500.0,0.00036986,2]
[341248650,1730725893287,-500.0,0.00036986,2]
[341248651,1730725893296,-500.0,0.00036986,2]
[341248652,1730725893306,-526.66455141,0.00036986,2]
[341248653,1730725893316,-601.59,0.00036986,2]
[341248654,1730725893325,-500.0,0.00036986,2]
[341248655,1730725893335,-500.0,0.00036986,2]
[341248656,1730725893345,-500.0,0.00036986,2]
[341248657,1730725893355,-500.0,0.00036986,2]
[341248658,1730725893364,-500.0,0.00036986,2]
[341248659,1730725893374,-500.0,0.00036986,2]
[341248660,1730725893383,-418.59189373,0.00036986,2]
[341248661,1730725893393,-500.0,0.00036986,2]
[341248662,1730725893403,-500.0,0.00036986,2]
[341248663,1730725893413,-500.0,0.00036986,2]
[341248664,1730725893423,-500.0,0.00036986,2]
[341248665,1730725893433,-500.0,0.00036986,2]
[341248666,1730725893442,-1995.05,0.00036986,2]
[341248667,1730725893452,-1008.77,0.00036986,2]
[341248668,1730725893461,-500.0,0.00036986,2]
[341248669,1730725893472,-500.0,0.00036986,2]
[341248670,1730725893481,-541.19452314,0.00036986,2]
[341248671,1730725893491,-500.0,0.00036986,2]
[341248672,1730725893500,-500.0,0.00036986,2]
[341248673,1730725893509,-623.02,0.00036986,2]
[341248674,1730725893519,-200.0,0.00036986,2]
[341248675,1730725893528,-500.0,0.00036986,2]
[341248676,1730725893538,-500.0,0.00036986,2]
[341248677,1730725893547,-500.0,0.00036986,2]
[341248678,1730725893556,-500.0,0.00036986,2]
[341248679,1730725893566,-500.0,0.00036986,2]
[341248680,1730725893576,-500.0,0.00036986,2]
[341248681,1730725893587,-500.0,0.00036986,2]
[341248682,1730725893598,-500.0,0.00036986,2]
[341248683,1730725893607,-500.0,0.00036986,2]
[341248684,1730725893617,-500.0,0.00036986,2]
[341248685,1730725893627,-500.0,0.00036986,2]
[341248686,1730725893636,-157.18,0.00036986,2]
[341248687,1730725893646,-1000.0,0.00036986,89]
[341248688,1730725893655,-500.0,0.00036986,2]
[341248689,1730725893665,-1000.0,0.00036986,89]
[341248690,1730725893676,-1000.0,0.00036986,89]
[341248691,1730725893685,-1000.0,0.00036986,89]
[341248692,1730725893695,-1000.0,0.00036986,89]
[341248693,1730725893705,-1000.0,0.00036986,89]
[341248694,1730725893714,-500.0,0.00036986,2]
[341248695,1730725893723,-500.0,0.00036986,2]
[341248696,1730725893732,-546.76824782,0.00036986,2]
[341248697,1730725893742,-500.0,0.00036986,2]
[341248698,1730725893751,-209.12595689,0.00036986,2]
[341248699,1730725893765,-166.06,0.00036986,2]
[341248700,1730725893775,-1165.65,0.00036986,2]
[341248701,1730725893784,-500.0,0.00036986,2]
[341248702,1730725893794,-500.0,0.00036986,2]
[341248703,1730725893804,-622.23785358,0.00036986,2]
[341248704,1730725893813,-500.0,0.00036986,2]
[341248705,1730725893822,-500.0,0.00036986,2]
[341248706,1730725893832,-500.0,0.00036986,2]
[341248707,1730725893843,-500.0,0.00036986,2]
[341248708,1730725893853,-512.83,0.00036986,2]
[341248709,1730725893862,-500.0,0.00036986,2]
[341248710,1730725893872,-500.0,0.00036986,2]
[341248711,1730725893882,-1331.81,0.00036986,2]
[341248712,1730725893891,-500.0,0.00036986,2]
[341248713,1730725893901,-476.88297155,0.00036986,2]
[341248714,1730725893910,-972.11,0.00036986,2]
[341248715,1730725893920,-500.0,0.00036986,2]
[341248716,1730725893930,-500.0,0.00036986,2]
[341248717,1730725893939,-224.26946385,0.00036986,2]
[341248718,1730725893948,-368.53632265,0.00036986,2]
[341248719,1730725893957,-500.0,0.00036986,2]
[341248720,1730725893966,-500.0,0.00036986,2]
[341248721,1730725893976,-487.06621983,0.00036986,2]
[341248722,1730725893985,-526.31265832,0.00036986,2]
[341248723,1730725893994,-500.0,0.00036986,2]
[341248724,1730725894004,-500.0,0.00036986,2]
[341248725,1730725894013,-500.0,0.00036986,2]
[341248726,1730725894022,-500.0,0.00036986,2]
[341248727,1730725894032,-500.0,0.00036986,2]
[341248728,1730725894042,-500.0,0.00036986,2]
[341248729,1730725894051,-500.0,0.00036986,2]
[341248730,1730725894061,-500.0,0.00036986,2]
[341248731,1730725894070,-1002.08,0.00036986,2]
[341248732,1730725894079,-500.0,0.00036986,2]
[341248733,1730725894089,-500.0,0.00036986,2]
[341248734,1730725894099,-543.78909179,0.00036986,2]
[341248735,1730725894108,-500.0,0.00036986,2]
[341248736,1730725894117,-500.0,0.00036986,2]
[341248737,1730725894126,-500.0,0.00036986,2]
[341248738,1730725894135,-500.0,0.00036986,2]
[341248739,1730725894144,-500.0,0.00036986,2]
[341248740,1730725894153,-500.0,0.00036986,2]
[341248741,1730725894163,-500.0,0.00036986,2]
[341248742,1730725894172,-500.0,0.00036986,2]
[341248743,1730725894181,-500.0,0.00036986,2]
[341248744,1730725894191,-500.0,0.00036986,2]
[341248745,1730725894200,-568.6,0.00036986,2]
[341248746,1730725894209,-451.7091695,0.00036986,2]
[341248747,1730725894218,-500.0,0.00036986,2]
[341248748,1730725894227,-1341.72,0.00036986,2]
[341248749,1730725894237,-399.28109222,0.00036986,2]
[341248750,1730725894246,-500.0,0.00036986,2]
[341248751,1730725894255,-500.0,0.00036986,2]
[341248752,1730725894265,-500.0,0.00036986,2]
[341248753,1730725894274,-500.0,0.00036986,2]
[341248754,1730725894283,-1042.98,0.00036986,2]
[341248755,1730725894292,-616.86512989,0.00036986,2]
[341248756,1730725894302,-500.0,0.00036986,2]
[341248757,1730725894311,-500.0,0.00036986,2]
[341248758,1730725894320,-500.0,0.00036986,2]
[341248759,1730725894329,-500.0,0.00036986,2]
[341248760,1730725894340,-597.19560051,0.00036986,2]
[341248761,1730725894347,-1342.69,0.00036986,2]
[341248762,1730725894354,-500.0,0.00036986,2]
[341248763,1730725894361,-7421.53,0.00036986,2]
[341248764,1730725894367,-500.0,0.00036986,2]
[341248765,1730725894374,-500.0,0.00036986,2]
[341248766,1730725894381,-3370.41,0.00036986,2]
[341248767,1730725894388,-500.0,0.00036986,2]
[341248768,1730725894394,-624.26,0.00036986,2]
[341248769,1730725894400,-707.91,0.00036986,2]
[341248770,1730725894408,-10707.45,0.00036986,2]
[341248771,1730725894415,-500.0,0.00036986,2]
[341248772,1730725894422,-500.0,0.00036986,2]
[341248773,1730725894428,-500.0,0.00036986,2]
[341248774,1730725894435,-626.65847561,0.00036986,2]
[341248775,1730725894441,-500.0,0.00036986,2]
[341248776,1730725894449,-500.0,0.00036986,2]
[341248777,1730725894457,-500.0,0.00036986,2]
[341248778,1730725894465,-831.55,0.00036986,2]
[341248779,1730725894471,-500.0,0.00036986,2]
[341248780,1730725894598,-500.0,0.00036986,2]
[341248781,1730725894608,-1217.0,0.00036986,2]
[341248782,1730725894618,-2695.19,0.00036986,2]
[341248783,1730725894628,-500.0,0.00036986,2]
[341248784,1730725894638,-500.0,0.00036986,2]
[341248785,1730725894648,-500.0,0.00036986,2]
[341248786,1730725894658,-575.84,0.00036986,2]
[341248787,1730725894667,-3535.86,0.00036986,2]
[341248788,1730725894677,-646.31,0.00036986,2]
[341248789,1730725894687,-540.81,0.00036986,2]
[341248790,1730725894696,-500.0,0.00036986,2]
[341248791,1730725894706,-830.33,0.00036986,2]
[341248792,1730725894715,-500.0,0.00036986,2]
[341248793,1730725894725,-500.0,0.00036986,2]
[341248794,1730725894734,-845.84,0.00036986,2]
[341248795,1730725894744,-2000.0,0.00036986,2]
[341248796,1730725894754,-4515.86,0.00036986,120]
[341248797,1730725894766,-918.13,0.00036986,2]
[341248798,1730725894775,-500.0,0.00036986,2]
[341248799,1730725894785,-1204.33,0.00036986,2]
[341248800,1730725894798,-500.0,0.00036986,2]
[341248801,1730725894807,-749.48,0.00036986,2]
[341248802,1730725894817,-162.85202614,0.00036986,2]
[341248803,1730725894827,-500.0,0.00036986,2]
[341248804,1730725894837,-1387.35,0.00036986,2]
[341248805,1730725894849,-1564.21,0.00036986,2]
[341248806,1730725894858,-485.34550719,0.00036986,2]
[341248807,1730725894868,-806.53,0.00036986,2]
[341248808,1730725894877,-500.0,0.00036986,2]
[341248809,1730725894887,-260.75509743,0.00036986,2]
[341248810,1730725894897,-5168.13,0.00036986,2]
[341248811,1730725894907,-10163.36,0.00036986,2]
[341248812,1730725894917,-500.0,0.00036986,2]
[341248813,1730725894927,-2866.16,0.00036986,2]
[341248814,1730725894937,-691.73,0.00036986,2]
[341248815,1730725894947,-184.21568729,0.00036986,2]
[341248816,1730725894956,-234.30453611,0.00036986,2]